Cogmind - Beta 10.1 @@@ ROGUE MODE // 2020.10.05 @ 03:01:27 Player: BOTHUNTER Result: Destroyed by S-10 Pest with Light Assault Rifle Performance ------------- Evolutions (0) 0 Regions Visited (1) 200 Robots Destroyed (7) 35 Value Destroyed (129) 129 Prototype IDs (0) 0 Alien Tech Used (0) 0 Bonus (0) 0 TOTAL SCORE: 364 Bonus ------- None Cogmind --------- Core Integrity 0/250 Matter 300/300 Energy 100/100 System Corruption 0% Temperature Cool (0) Movement Flying (40) Location -10/Materials Parts ------- > --- POWER (1) -------- (None) > --- PROPULSION (2) --- Flight Unit > --- UTILITY (2) ------ Salvage Targeting Computer Salvage Targeting Computer > --- WEAPON (2) ------- Mining Claw > --- INVENTORY (4) ---- Compact Wheel Salvage Targeting Computer Salvage Targeting Computer Peak State ------------ > --- POWER ------------ (None) > --- PROPULSION ------- Flight Unit > --- UTILITY ---------- Salvage Targeting Computer Salvage Targeting Computer > --- WEAPON ----------- Assault Rifle Light Cannon > --- INVENTORY -------- Salvage Targeting Computer Salvage Targeting Computer [Rating: 7] Favorites ----------- Power None Propulsion Flight Unit Flight Unit Flight Unit Utility Salvage Targeting Computer Processor Salvage Targeting Computer Weapon Assault Rifle Ballistic Gun Assault Rifle Ballistic Cannon Light Cannon Slashing Weapon Mining Claw Build | -11 -10 ------- Run | Scr Mat Slots Evolved . | . . Power . | . . Propulsion . | . . Utility . | . . Weapon . | . . Parts Attached 6 | 1 5 Power . | . . Engine . | . . Core . | . . Reactor . | . . Propulsion 1 | . 1 Treads . | . . Leg . | . . Wheel . | . . Hover . | . . Flight 1 | . 1 Utility 2 | . 2 Device . | . . Storage . | . . Processor 2 | . 2 Hackware . | . . Protection . | . . Artifact . | . . Weapon 3 | 1 2 Energy Gun . | . . Energy Cannon . | . . Ballistic Gun 1 | 1 . Ballistic Cannon 1 | . 1 Launcher . | . . Special Weapon . | . . Impact Weapon . | . . Slashing Weapon 1 | . 1 Piercing Weapon . | . . Special Melee Weapon . | . . Unidentified Prototypes . | . . Parts Lost 1 | . 1 Power . | . . Propulsion . | . . Utility . | . . Weapon 1 | . 1 Highest Loss Streak 1 | . 1 Average Slot Usage (%) 56 | . 56 Flight 8 | . 8 Processor 27 | . 27 Ballistic Gun 13 | . 13 Slashing Weapon 6 | . 6 Naked Turns . | . . Heaviest Build 4 | 2 4 Greatest Support 4 | 3 4 Greatest Overweight (x) . | . . Average Overweight (x) . | . . Largest Inventory Capacity 4 | 4 4 Average Capacity 4 | 4 4 Most Carried 3 | . 3 Average Carried 1 | . 1 Final Capacity 4 | 4 4 Final Carried 3 | . 3 Class Distribution -------------------- 100% | Mutant Dominant Class ---------------- Mutant | -10/Materials Resources | -11 -10 ----------- Run | Scr Mat Matter Collected 378 | 200 178 Remotely . | . . Salvage Created 233 | . 233 Parts 12 | . 12 Haulers Intercepted 1 | . 1 Recyclers Shooed 2 | . 2 Parts Field Recycled . | . . Retrieved Matter . | . . Parts Self-Destructed . | . . Prevented . | . . Kills | -11 -10 ------- Run | Scr Mat Combat Hostiles Destroyed 5 | . 5 Guns 5 | . 5 Classes Destroyed 4 | . 4 Hauler 1 | . 1 Watcher 1 | . 1 Swarmer 3 | . 3 Grunt 2 | . 2 Best Kill Streak 5 | . 5 Combat Bots Only 4 | . 4 Max Kills in Single Turn 1 | . 1 Gunslinging . | . . Exploded . | . . Melee . | . . Uniques/NPCs Destroyed . | . . Combat | -11 -10 -------- Run | Scr Mat Damage Taken 389 | . 389 Core 255 | . 255 Absorbed by Shields . | . . Core Remaining (%) 100 | 100 . Volleys Fired 38 | . 38 Largest 2 | . 2 Hottest 55 | . 55 Shots Fired 39 | . 39 Gun 38 | . 38 Cannon 1 | . 1 Launcher . | . . Special . | . . Kinetic 39 | . 39 Thermal . | . . Explosive . | . . Electromagnetic . | . . Robot Hit Streak 6 | . 6 Robot Miss Streak 4 | . 4 Penetration Max . | . . Secondary Targets . | . . Shots Hit Robots 23 | . 23 Core Hits 10 | . 10 Critical Hits . | . . Critical Kills . | . . Critical Parts Destroyed . | . . Melee Attacks 16 | . 16 Impact . | . . Slashing 16 | . 16 Piercing . | . . Sneak Attacks 2 | . 2 Combat Hostiles . | . . Follow-up Attacks . | . . Damage Inflicted 383 | . 383 Guns 241 | . 241 Cannons . | . . Explosions . | . . Melee 142 | . 142 Ramming . | . . Kinetic 241 | . 241 Thermal . | . . Explosive . | . . Electromagnetic . | . . Impact . | . . Slashing 142 | . 142 Piercing . | . . Highest Corruption . | . . Average Corruption . | . . Corruption Purged . | . . Overload Shots . | . . Overflow Damage 52 | . 52 Projectiles . | . . Explosions . | . . Melee 52 | . 52 Knockbacks . | . . Impact . | . . Kinetic . | . . Secondary . | . . Self-Inflicted Damage . | . . Shots . | . . Rammed . | . . Targets Rammed . | . . Kicked . | . . Crushed . | . . Highest Temperature . | . . Average Temperature . | . . Received Heat Transfer 87 | . 87 Siege Activations . | . . Robots Corrupted . | . . Combat Hostiles . | . . Parts Fried . | . . Impact Corruptions . | . . Robots Melted . | . . Combat Hostiles . | . . Parts Melted . | . . Heat Transferred . | . . Parts Sabotaged . | . . Parts Stolen . | . . Parts Stripped . | . . Power Chain Reactions . | . . Missiles Intercepted . | . . Alert | -11 -10 ------- Run | Scr Mat Peak Influence 155 | . 155 Initial . | . . Average 83 | . 96 Maximum Alert Level . | . . Low Security (%) 100 | 100 100 Level 1 . | . . Level 2 . | . . Level 3 . | . . Level 4 . | . . Level 5 . | . . High Security . | . . Max Security . | . . Squads Dispatched 3 | . 3 Investigation . | . . Extermination . | . . Reinforcement 3 | . 3 Assault . | . . Garrison . | . . Intercept . | . . Construction Impeded . | . . Haulers Reinforced . | . . Stealth | -11 -10 --------- Run | Scr Mat Distress Signals 2 | . 2 Communications Jammed . | . . Distress Signals . | . . Times Spotted 16 | . 16 Peak Tracking Total 5 | . 5 Tactical Retreats . | . . Traps | -11 -10 ------- Run | Scr Mat Traps Triggered . | . . Indirectly . | . . Trap Hack Attempts . | . . Triggered . | . . Disarmed . | . . Reprogrammed . | . . Reused . | . . Traps Extracted . | . . Installed . | . . Triggered . | . . Machines | -11 -10 ---------- Run | Scr Mat Machines Disabled . | . . Max in Single Turn . | . . Machines Sabotaged . | . . Garrisons Compromised . | . . Overloaded Fab Kills . | . . Fab Network Shutdowns . | . . Hacking | -11 -10 --------- Run | Scr Mat Machines Accessed 1 | . 1 Terminals 1 | . 1 Fabricators . | . . Repair Stations . | . . Recycling Units . | . . Scanalyzers . | . . Garrison Access . | . . Total Hacks 2 | . 2 Successful 1 | . 1 Failed . | . . Catastrophic . | . . Database Lockouts 1 | . 1 Manual 3 | . 3 Terminals 2 | . 2 Fabricators . | . . Repair Stations . | . . Recycling Units . | . . Scanalyzers . | . . Garrison Access . | . . Terminal Hacks 1 | . 1 Robot Analysis 1 | . 1 Fabricator Hacks . | . . Repair Station Hacks . | . . Recycling Unit Hacks . | . . Scanalyzer . | . . Garrison Access Hacks . | . . Unauthorized Hacks . | . . Terminals . | . . Fabricators . | . . Repair Stations . | . . Recycling Units . | . . Scanalyzers . | . . Garrison Access . | . . Data Cores Recovered . | . . Used . | . . Hacking Detections 1 | . 1 Full Trace Events . | . . Feedback Events . | . . Feedback Blocked . | . . Robot Schematics Acquired . | . . Robots Built . | . . Matter . | . . Time . | . . Total Robot Build Rating . | . . Part Schematics Acquired . | . . Parts Built . | . . Matter . | . . Time . | . . Total Part Build Rating . | . . Parts Repaired . | . . Time . | . . Parts Recycled . | . . Recycled Matter . | . . Retrieved Matter . | . . Retrieved Components . | . . Parts Scanalyzed . | . . Part Schematics Acquired . | . . Parts Damaged . | . . Bothacking | -11 -10 ------------ Run | Scr Mat Used RIF Installer . | . . Robots Hacked . | . . Non-combat . | . . Combat . | . . Robot Hacks Applied . | . . Relay Couplers Released . | . . Robots Rewired . | . . Allies Hacked . | . . Hacks Repelled . | . . Allies | -11 -10 -------- Run | Scr Mat Total Allies . | . . Largest Group . | . . Highest-Rated Group . | . . Highest-Rated Ally . | . . Total Orders . | . . Ally Attacks . | . . Total Damage . | . . Kills . | . . Allies Corrupted . | . . Allies Melted . | . . Intel | -11 -10 ------- Run | Scr Mat Robot Analysis Total 1 | . 1 Derelict Logs Recovered . | . . Drone Launches . | . . Drone Recoveries . | . . Exploration | -11 -10 ------------- Run | Scr Mat Turns Passed 253 | 33 220 Spaces Moved 251 | 64 187 Core 109 | 64 45 Treads . | . . Legs . | . . Wheels . | . . Hover . | . . Flight 142 | . 142 Fastest Speed 40 | 50 40 Average Speed 44 | 50 42 Slowest Speed 50 | 50 50 Overloaded Moves . | . . Propulsion Burnouts . | . . Robots Hopped . | . . Cave-ins Triggered . | . . Exploration Rate (%) 23 | 4 43 Regions Visited 1 Branch Regions . Pre-discovered Areas . | . . Known Exits Taken . | . . Unknown Exits Taken 1 | 1 . Scrap Searched . | . . Spaces Dug 3 | . 3 Terrain Destroyed 3 | . 3 Melee 3 | . 3 Projectile . | . . AOE . | . . Terrain Rammed . | . . Walls Destroyed . | . . Machines Disabled . | . . Actions | -11 -10 --------- Run | Scr Mat Total 320 | 64 256 Wait 7 | . 7 Move 250 | 63 187 Hop . | . . Pick Up 2 | . 2 Fast Attach 6 | 1 5 Attach . | . . Detach . | . . Swap . | . . Drop 1 | . 1 Fire 38 | . 38 Melee 16 | . 16 Ram . | . . Kick . | . . Crush . | . . Escape Stasis . | . . Rewire . | . . Trap . | . . Miscellaneous . | . . Route ------- -11/Scrapyard -10/Materials (discovered 1 exit: [*Min]) History --------- Turn | Location | Event 3 | -11/Scrapyard | Discovered new exit (range 15) 34 | -11/Scrapyard | Entered Materials 90 | -10/Materials | Core integrity fell below 50% 182 | -10/Materials | Central database locked down 226 | -10/Materials | Discovered new exit (range 7) 243 | -10/Materials | Core integrity fell below 20% 254 | -10/Materials | Destroyed by S-10 Pest with Light Assault Rifle Last Messages --------------- protected as they could be, to enable rapid repair in the field, but this also makes them somewhat susceptible to additional damage from electromagnetic attacks. Grunts patrol in groups, or sometimes operate alone as hauler escorts to protect those with more valuable cargo. 00182_ ALERT: Central database lockdown, local access denied. 00188_ Sneak attack on O-16 Technician. 00188_ Destroyed Lgt. Ion Engine. 00188_ Destroyed Hover Unit. 00188_ Destroyed Datajack. 00214_ W-16 Scout destroyed. 00217_ Acquired 4 matter. 00221_ K-01 Serf collects debris. 00226_ EXIT=FOUND 00237_ Sneak attack on R-06 Scavenger. 00237_ R-06 Scavenger Com. Wheel ripped off. 00238_ K-01 Serf cleans the Machine. 00240_ O-16 Technician sends out distress signal. 00240_ O-16 Technician: "IFF HANDSHAKE FAILED. SECURING TERMINAL." 00248_ Assault Rifle destroyed. 00248_ ALERT: Hostiles spotted, dispatching reinforcements to Terminal M006. Map ----- +----------------------------------------------------+ | ??????????????????????????????????????????? | | ??????????????????????????????????????????? | | ??????????????????????????????????????????? | | ??????????????????????????????????????????? | | ??????????????????????????????????????????? | | ??????????????????????????????????????????? | | ??????????????????????????????????????????? | | ??????????????????????????????????????????? | | ??????????????????????????????????????????? | | ??????????????????????????????????????????? | | ??????????????????????????????????????????? | | ??????????????????????????????????????????? | | ??????????????????????????????????????????? | | ??????????????????????????????????????????? | | ?????????????????????????????##???????????? | | #????????????####+########## ???????????? | | ???????????? ?? ??????????? | | ????????????? ? ?????????? | | ?????????????? [[ """ #?????????? | | ??????????????# [ """ #?????????? | | ??????????????# """ #?????????? | | #??????????????+ #?????????? | | ##########?????# #?????????? | | ##"""""""#?????+ """s """ #?????????? | | ##" |"| "#?????# """ s""" #?????????? | | ##" "####### """ @""" #?????????? | | s #?????????? | | < #?????????? | | #?????????? | | ## ##k#####+#####"T"# #?????????? | | ########## #??#######+###?????????? | | #????????# #????????? ???????????? | | #????????# #??????????" ??????????? | | #????????# #??????????? ?????????? | | #????????# #??????????? ????????? | | #???####?# #???????????? #???????? | | #???"""#?# #??????????????#???????? | | ####"T"### #??????????????????????? | | ####+######??????????????????????? | | #??# #???????????????????????????? | | """ #??# #???????????????????????????? | | """ #??# #????########???????????????? | | ! """ #??# #???? #???????????????? | | ! #??# #??# """"" #???????????????? | | ####+#### """"" #####?######????? | | """ # ## """"" # #?""" #????? | | """ # """ ## + # """ #????? | | """ # """ ## " " # # """ #????? | | + """ ## "R" # + #????? | | # %!!## """ # # #????? | +----------------------------------------------------+ Best States ------------- Heat Dissipation 25 Energy Generation 5 Energy Capacity 100 Matter Stores 300 Matter Capacity 300 Sight Range 16 Terrain Scan Density 10 Evasion (%) 62 Salvage Targeting 2 Item Schematics ----------------- None Robot Schematics ------------------ None Fabricated ------------ Nothing Alien Tech Used ----------------- None Achievements -------------- None Challenges ------------ None Game ------ Seed CorruptionLinearSuite Manual? 0 Play Time 00:05:29 Cumulative 103.5 hours Start 2020.10.05 @ 02:58:28 End 2020.10.05 @ 03:01:27 Sessions 1 Manual Loads 0 Difficulty Rogue Special Mode None Game No. 156 Rogue 132 Adventurer 22 Explorer 2 Win Type - Total 1 Types 1/0/0/0/0/0/0/0/0 Lore% 48 Gallery% 52 Achievement% 43 Wizard Run 0 Options --------- ASCII 0 Keyboard 0 Movement Numpad Keybinds 0 Fullscreen 1 Font 14/SmallcapsGlow Map View 84x54 Tactical HUD 1 Map Filters NONE Filters NONE Steam 1 RUN: 0b2069a1-3560-4707-bb85-77e80996c178